[Event "55th Biel Festival GMT Classical 2022"]
[Site "Biel"]
[Date "2022.07.19"]
[Round "4.4"]
[White "Le, Quang Liem"]
[Black "Keymer, Vincent"]
[Result "1-0"]
[ECO "E16"]
[WhiteElo "2722"]
[BlackElo "2686"]
[Annotator "TA"]
[PlyCount "154"]
[EventDate "2022.07.14"]
[EventType "tourn"]
[EventCountry "SUI"]
[SourceTitle "playchess.com"]
[Source "ChessBase"]
[SourceQuality "1"]
[TimeControl "40/6000+30:20/3000+30:900+30"]

{[%evp 14,154,13,7,10,9,11,-6,8,12,14,9,12,5,12,16,14,13,13,14,10,13,15,9,17,0,0,7,8,2,4,3,2,-43,0,0,-2,-6,0,-58,-13,-13,-8,-55,-54,-53,-54,-79,-56,-60,-56,-58,0,-54,-48,-44,-53,-78,-60,-61,-61,-61,-61,-68,-61,-75,-19,-32,-5,-5,0,-6,-8,-5,0,0,0,0,0,0,0,0,0,0,0,0,0,0,0,0,0,0,0,0,0,0,8,0,0,0,0,0,0,0,0,0,0,0,6,6,6,7,7,8,314,279,419,372,1740,379,29950,29954,5730,12813,29942,12016,1697,9362,29963,29965,29954,5425,29983,29984,29991,29990,29992,29991,29991,29992,29992,29993,29993]} 1. d4 {[%emt 0:00:04]} Nf6 {[%emt 0:00:03]} 2. c4 {[%emt 0:00:14]} e6 {[%emt 0:00:03]} 3. g3 {[%emt 0:00:14]} Bb4+ {[%emt 0:01:03]} 4. Nd2 {[%emt 0:00:16]} d5 {[%emt 0:00:52]} 5. Bg2 {[%emt 0:00:11]} O-O {[%emt 0:00:53]} 6. Ngf3 {[%emt 0:00:10]} b6 {[%emt 0:07:30]} 7. O-O {[%emt 0:00:17]} Bb7 {[%emt 0:00:10]} 8. Ne5 {[%emt 0:00:10]} a5 {[%emt 0:05:31] now supersedes 8...Nbd7. E16: Queen's Indian: 4 g3 Bb7 5 Bg2 Bb4+.} 9. a3 {[%emt 0:00:28]} Be7 {[%emt 0:05:34]} 10. cxd5 {[%emt 0:00:19] [#]} exd5 $146 {[%emt 0:08:24] The position is equal.} ({Predecessor:} 10... Bxd5 11. Qa4 c5 12. dxc5 Qc7 13. e4 Bb7 14. Ndc4 Bxc5 15. Bf4 Nh5 16. Bd2 Nf6 17. Bf4 {½-½ (17) Jones,B (2298)-Markus,R (2289) ICCF email 2017}) 11. Nb1 {[%emt 0:02:35]} Nbd7 {[%emt 0:10:17]} 12. Nc3 {[%emt 0:00:36]} Ne4 {[%emt 0:05:22]} 13. Nxe4 {[%emt 0:23:49]} dxe4 {[%emt 0:00:27]} 14. Qc2 {[%emt 0:02:12]} Nxe5 {[%emt 0:04:13]} 15. dxe5 {[%emt 0:00:03]} Qd5 {[%emt 0:00:42]} 16. Rd1 {[%emt 0:06:38]} (16. Qxc7 Bc5 17. e6 Rac8 $17) 16... Qxe5 {[%emt 0:05:06]} 17. Bf4 {[%emt 0:00:10]} Qe6 {[%emt 0:10:58]} 18. Qxc7 {[%emt 0:01:07]} Ba6 {[%emt 0:00:21]} 19. Qd7 {[%emt 0:08:37]} Bxe2 {[%emt 0:05:59]} 20. Qxe6 {[%emt 0:00:08]} fxe6 {[%emt 0:00:02]} 21. Rd7 {[%emt 0:02:04]} Bf6 {[%emt 0:02:39]} 22. Bxe4 {[%emt 0:02:54]} Rad8 {[%emt 0:00:18]} (22... Rfd8 {looks sharper.} 23. Rb7 Bxb2 24. Re1 Bd3) 23. Bc6 {[%emt 0:16:55]} Bc4 {[%emt 0:06:40]} (23... Bxb2 $2 24. Ra2 $18) 24. Rxd8 {[%emt 0:04:08]} Rxd8 {[%emt 0:00:36]} 25. Rc1 {[%emt 0:00:13]} Bb3 {[%emt 0:09:47]} 26. a4 {[%emt 0:05:01]} (26. Bc7 $11 Rd2 27. Bxb6) 26... Bd4 {[%emt 0:01:44]} (26... Bxb2 27. Rb1 Rd1+ 28. Rxd1 Bxd1 29. Be3 $11) 27. Bb5 {[%emt 0:03:23]} h6 {[%emt 0:03:19]} 28. Be3 {[%emt 0:07:01]} (28. Bc4 $11 Bxc4 29. Rxc4) 28... Bxe3 $15 {[%emt 0:03:05]} 29. fxe3 {[%emt 0:00:02][%mdl 4096] Endgame KRB-KRB} g5 {[%emt 0:01:19]} 30. Rf1 {[%emt 0:07:09]} Kg7 {[%emt 0:00:55]} 31. h4 {[%emt 0:00:55]} Rd5 {[%emt 0:03:25]} 32. Be8 {[%emt 0:02:30]} Rd8 {[%emt 0:00:04]} 33. Bb5 {[%emt 0:00:37]} Rc8 {[%emt 0:01:40]} 34. hxg5 {[%emt 0:05:43]} hxg5 {[%emt 0:00:05]} 35. Rf2 {[%emt 0:00:18]} Rc1+ {[%emt 0:00:47]} 36. Rf1 {[%emt 0:00:01]} Rc5 {[%emt 0:00:29]} 37. Be8 {[%emt 0:02:35]} Rc8 {[%emt 0:00:14]} 38. Bb5 {[%emt 0:00:11]} Bd5 {[%emt 0:01:13]} 39. Bd3 {[%emt 0:00:13]} Rc5 {[%emt 0:00:38]} ({Black should try} 39... Bb7 $17) 40. Kf2 $1 $11 {[%emt 0:01:46]} e5 {[%emt 0:07:11]} 41. e4 {[%emt 0:57:43]} Bb3 {[%emt 0:03:08]} 42. Bb5 {[%emt 0:00:00]} Rc2+ {[%emt 0:07:23]} 43. Ke3 {[%emt 0:00:00]} Rg2 {[%emt 0:00:26]} 44. Kf3 {[%emt 0:00:00]} Rxb2 {[%emt 0:02:26]} 45. Kg4 {[%emt 0:00:00]} Be6+ {[%emt 0:01:45]} 46. Kxg5 {[%emt 0:00:00]} Rb3 {[%emt 0:01:06]} 47. Rg1 {[%emt 0:00:00]} Re3 {[%emt 0:05:03]} 48. Bc6 $1 {[%emt 0:00:00]} Rf3 {[%emt 0:00:07]} 49. Be8 {[%emt 0:00:00]} Rd3 {[%emt 0:03:30]} 50. g4 {[%emt 0:00:00]} Rd4 {[%emt 0:10:04]} 51. Re1 {[%emt 0:00:00]} Rc4 {[%emt 0:01:21]} 52. Bb5 {[%emt 0:00:00]} Rc2 {[%emt 0:00:33]} 53. Rg1 {[%emt 0:00:00]} Rc3 {[%emt 0:03:14]} 54. Rb1 {[%emt 0:00:00]} Rc8 {[%emt 0:06:22] Against Be8} 55. Be2 {[%emt 0:00:00]} Rc6 {[%emt 0:00:25]} 56. Rb5 {[%emt 0:00:02]} Bd7 $1 {[%emt 0:02:46]} 57. Rxe5 {[%emt 0:00:08]} Rg6+ {[%emt 0:00:02][%mdl 64] Discovered Attack} 58. Kf4 {[%emt 0:00:37] aiming for Re7+.} Rf6+ {[%emt 0:00:14]} 59. Ke3 {[%emt 0:00:46]} Bxa4 {[%emt 0:00:05]} 60. g5 {[%emt 0:00:39]} Rf7 {[%emt 0:00:33]} 61. Re6 {[%emt 0:16:16]} Rb7 {[%emt 0:16:23]} ({Don't play} 61... b5 62. Ra6 $14) 62. Bc4 {[%emt 0:01:41] Against Bb3} b5 {[%emt 0:04:30]} 63. Bd5 {[%emt 0:00:08]} Ra7 $2 {[%emt 0:00:02][%mdl 8192] A mistake that costs the game.} (63... Rb8 $1 $11 {and Black stays safe.}) 64. Re8 $1 $18 {[%emt 0:00:41]} Kh7 {[%emt 0:00:00]} (64... Bd1 $142 65. Rg8+ Kh7 66. g6+ Kh6) 65. Kf4 {[%emt 0:00:00] And now Kf5 would win.} Bd1 $2 {[%emt 0:00:00]} (65... b4 66. Rg8 b3) 66. Rb8 $2 {[%emt 0:00:00]} (66. Kf5 {g6+ would kill now.} Bh5 67. Rb8) 66... a4 $2 {[%emt 0:00:00]} (66... Kg6 $18 67. Rg8+ (67. Rxb5 Bh5 $16) 67... Rg7) 67. Kf5 $1 {[%emt 0:00:00]} Bh5 {[%emt 0:00:00] [#]} 68. e5 $1 {[%emt 0:00:00][%cal Be4e5,Be5e6][%mdl 32]} Rd7 {[%emt 0:04:49]} 69. Rxb5 {[%emt 0:00:00]} Kg7 {[%emt 0:00:29] [#]} 70. Ra5 $1 {[%emt 0:00:00] Threatening mate with e6.} Be8 {[%emt 0:01:02]} 71. e6 {[%emt 0:00:00]} Rc7 {[%emt 0:00:05]} 72. Ra8 {[%emt 0:00:27]} Bb5 {[%emt 0:02:12]} 73. e7 {[%emt 0:01:01] White mates.} Rxe7 {[%emt 0:00:49]} 74. Rg8+ {[%emt 0:00:08]} Kh7 {[%emt 0:00:02]} 75. g6+ {[%emt 0:00:13]} Kh6 {[%emt 0:00:03]} 76. Rh8+ {[%emt 0:00:14]} Kg7 {[%emt 0:00:02]} 77. Rh7+ {[%emt 0:00:09]} Kf8 {[%emt 0:00:01] Weighted Error Value: White=0.06 (flawless) /Black=0.07 (flawless)} 1-0

[Event "55th Biel Festival GMT Classical 2022"]
[Site "Biel"]
[Date "2022.07.20"]
[Round "5.1"]
[White "Keymer, Vincent"]
[Black "Gukesh D"]
[Result "0-1"]
[ECO "D35"]
[WhiteElo "2686"]
[BlackElo "2684"]
[Annotator "TA"]
[PlyCount "134"]
[EventDate "2022.07.14"]
[EventType "tourn"]
[EventCountry "SUI"]
[SourceTitle "playchess.com"]
[Source "ChessBase"]
[SourceQuality "1"]
[TimeControl "40/6000+30:20/3000+30:900+30"]

{[%evp 11,134,31,20,21,27,8,10,4,0,14,25,10,26,25,42,7,23,0,2,0,20,14,6,0,0,0,9,1,1,0,11,0,0,0,18,0,25,0,8,-15,-8,-15,-15,-17,-39,-108,-73,-73,-78,-387,-372,-391,-368,-387,-374,-366,-353,-342,-338,-316,-289,-555,-552,-541,-535,-687,-698,-698,-698,-669,-669,-625,-562,-783,-783,-783,-706,-516,-494,-29952,-29954,-29955,-29957,-29962,-29962,-29960,-29961,-29957,-29955,-29966,-29967,-29970,-29971,-29971,-29972,-29972,-29973,-29973,-29974,-29974,-29974,-29974,-29975,-29975,-29975,-29975,-29976,-29976,-29977,-29977,-29978,-29978,-29979,-29979,-29979,-29989,-29990,-29990,-29991,-29992,-29993,-29993,-29994,-29994,-29995]} 1. c4 {[%emt 0:00:09]} e6 {[%emt 0:01:31]} 2. Nc3 {[%emt 0:00:04]} d5 {[%emt 0:00:22]} 3. d4 {[%emt 0:00:04]} Nf6 {[%emt 0:01:08]} 4. cxd5 {[%emt 0:00:04]} exd5 {[%emt 0:00:12]} 5. Bg5 {[%emt 0:00:04]} Bb4 {[%emt 0:00:06]} 6. e3 {[%emt 0:00:04]} h6 {[%emt 0:00:09]} 7. Bf4 {[%emt 0:00:03] D35: Queen's Gambit Declined: Exchange Variation.} Bf5 {[%emt 0:14:00]} 8. Bd3 {[%emt 0:00:21]} Bxd3 {[%emt 0:00:28]} 9. Qxd3 {[%emt 0:00:04] [#] next Qb5+ is good for White. The position is equal.} O-O $146 {[%emt 0:00:37]} ({Predecessor:} 9... Nbd7 10. Nge2 c6 11. O-O O-O 12. a3 Bxc3 13. bxc3 Re8 14. c4 Nb6 15. cxd5 cxd5 {0-1 (58) Villegas,P (2367)-Lauron,W (1888) Europe Echecs INT 2020}) 10. Nge2 {[%emt 0:00:13]} c6 {[%emt 0:02:30] Against Qb5} 11. g4 {[%emt 0:01:10]} Ne4 {[%emt 0:10:00]} 12. h4 {[%emt 0:16:12]} Nd7 {[%emt 0:01:19]} 13. a3 {[%emt 0:17:07]} Ba5 {[%emt 0:21:25]} (13... Bxc3+ $5 14. Nxc3 Nxc3 15. Qxc3 Re8 $11) 14. f3 {[%emt 0:02:54]} (14. Kf1 $5 {[%cal Rc3e4]}) 14... Nxc3 {[%emt 0:00:10]} 15. bxc3 {[%emt 0:00:04]} Re8 {[%emt 0:12:53]} 16. Kf2 {[%emt 0:18:23]} Nf8 {[%emt 0:01:06]} 17. g5 {[%emt 0:07:22]} h5 {[%emt 0:00:17]} 18. Be5 {[%emt 0:05:01]} Qd7 {[%emt 0:03:29]} 19. Ng3 {[%emt 0:03:14]} g6 {[%emt 0:00:16]} 20. c4 {[%emt 0:03:49]} b5 {[%emt 0:01:31]} 21. c5 {[%emt 0:01:59]} Bc7 {[%emt 0:00:35]} 22. f4 {[%emt 0:00:17]} a5 {[%emt 0:00:13][%cal Ba7a5,Ba5a4,Ba4a3,Ba3a2][%mdl 32]} 23. Rab1 {[%emt 0:04:58]} Rad8 {[%emt 0:00:26]} 24. Qf1 {[%emt 0:03:13]} Rb8 {[%emt 0:06:20]} 25. Qh3 {[%emt 0:01:40]} Ne6 {[%emt 0:00:06]} 26. Rb3 {[%emt 0:04:38]} Rb7 {[%emt 0:01:25]} 27. Kg2 {[%emt 0:01:38]} a4 {[%emt 0:04:16]} 28. Rb2 {[%emt 0:01:19]} (28. Rb4 $1 $15) 28... Bxe5 {[%emt 0:12:37]} 29. fxe5 {[%emt 0:00:07]} b4 $1 {[%emt 0:00:05]} 30. axb4 {[%emt 0:01:59][%mdl 8192] This costs White the game.} (30. Rhb1 $17) 30... Reb8 $19 {[%emt 0:00:24][%cal Be8b8,Bb8b4,Bb4d4,Bd4g4,Bg4g3][%mdl 32]} 31. Rhb1 {[%emt 0:01:53]} a3 {[%emt 0:01:05]} 32. Rb3 {[%emt 0:00:17]} a2 {[%emt 0:01:33]} 33. Ra1 {[%emt 0:00:03]} Rxb4 {[%emt 0:00:05]} 34. Rxb4 {[%emt 0:00:14]} Rxb4 {[%emt 0:00:01]} 35. Rxa2 {[%emt 0:05:11]} Rxd4 $1 {[%emt 0:00:20] White must now prevent ...Rg4.} 36. Qh1 $2 {[%emt 0:03:40]} (36. Ra8+ {is the only way for White.} Kg7 37. Kg1 (37. Nxh5+ $2 gxh5 38. Qf3 Rg4+ 39. Kf1 Qe7 $19)) 36... Rg4 {[%emt 0:03:58] aiming for ...d4.} 37. Ra8+ {[%emt 0:00:41]} Kh7 {[%emt 0:00:12] Hoping for ...d4.} 38. Qb1 {[%emt 0:03:37] [#]} Nxg5 $1 {[%emt 0:01:45][%mdl 512]} 39. hxg5 {[%emt 0:04:04] White wants to mate with Qb8.} h4 {[%emt 0:00:10][%mdl 64] Pin} 40. Qf1 {[%emt 0:01:53][%cal Oa8f8]} Rxg3+ {[%emt 0:04:19][%mdl 4096] Endgame KQR-KQR} 41. Kh2 {[%emt 0:50:22]} Qe6 {[%emt 0:23:31]} ({Worse is} 41... Rxe3 42. Rf8 f5 43. exf6 $17) 42. Ra7 {[%emt 0:00:00]} Rxg5 {[%emt 0:01:28] And now ...Rf5 would win.} 43. Qxf7+ {[%emt 0:00:00]} Qxf7 {[%emt 0:00:07]} 44. Rxf7+ {[%emt 0:00:00] KR-KR} Kh6 {[%emt 0:00:24]} 45. Rf6 {[%emt 0:00:00]} (45. Kh3 $19 Rxe5 46. Kxh4 Re4+ 47. Kh3 Rxe3+ 48. Kh2) 45... Rxe5 {[%emt 0:00:33] Black mates.} 46. Rxc6 {[%emt 0:00:00]} Rxe3 {[%emt 0:00:06]} 47. Rd6 {[%emt 0:00:00]} Rd3 {[%emt 0:00:27]} 48. c6 {[%emt 0:00:00]} Rc3 {[%emt 0:00:06]} 49. Kg2 {[%emt 0:00:08]} Kh5 {[%emt 0:04:27]} 50. Rxd5+ {[%emt 0:00:05]} g5 {[%emt 0:00:03]} 51. Rd6 {[%emt 0:00:39]} h3+ {[%emt 0:00:10]} 52. Kh2 {[%emt 0:01:46]} Kh4 {[%emt 0:00:10]} 53. Rh6+ {[%emt 0:00:14]} Kg4 {[%emt 0:00:02]} 54. Rd6 {[%emt 0:00:05]} Rc2+ {[%emt 0:00:04]} 55. Kg1 {[%emt 0:01:10]} Kg3 {[%emt 0:00:06]} 56. Rd3+ {[%emt 0:00:04] [#]} Kh4 $1 {[%emt 0:00:05]} 57. c7 {[%emt 0:00:43]} Rxc7 {[%emt 0:00:11]} 58. Rd4+ {[%emt 0:00:20]} g4 {[%emt 0:00:07]} 59. Kh2 {[%emt 0:00:22]} Rc2+ {[%emt 0:00:06]} 60. Kg1 {[%emt 0:00:05]} Re2 {[%emt 0:00:57]} 61. Ra4 {[%emt 0:15:13]} Kg3 {[%emt 0:15:06][%cal Re2e1]} 62. Ra3+ {[%emt 0:00:04] [#]} Kf4 $1 {[%emt 0:00:04]} 63. Ra4+ {[%emt 0:00:25]} Kf3 {[%emt 0:00:06]} 64. Ra3+ {[%emt 0:00:12]} Re3 {[%emt 0:00:05]} 65. Ra1 {[%emt 0:00:03]} g3 {[%emt 0:01:18]} 66. Rb1 {[%emt 0:00:21]} h2+ {[%emt 0:01:21]} 67. Kh1 {[%emt 0:00:04]} Kg4 {[%emt 0:00:04] Weighted Error Value: White=0.32/Black=0.03 (flawless)} 0-1

[Event "55th Biel Festival GMT Classical 2022"]
[Site "Biel"]
[Date "2022.07.20"]
[Round "5.2"]
[White "Salem, A.R. Saleh"]
[Black "Le, Quang Liem"]
[Result "0-1"]
[ECO "E11"]
[WhiteElo "2684"]
[BlackElo "2722"]
[Annotator "TA"]
[PlyCount "154"]
[EventDate "2022.07.14"]
[EventType "tourn"]
[EventCountry "SUI"]
[SourceTitle "playchess.com"]
[Source "ChessBase"]
[SourceQuality "1"]
[TimeControl "40/6000+30:20/3000+30:900+30"]

{[%evp 16,154,10,11,25,23,37,0,0,10,33,0,0,0,23,39,43,0,30,0,0,0,24,-24,-16,-17,-2,-4,18,15,15,20,20,20,40,22,50,22,71,52,56,25,56,13,28,5,35,12,35,17,13,-22,29,22,72,83,89,71,50,62,77,97,85,58,73,52,61,0,0,0,0,0,0,0,0,-37,-26,-30,-33,-43,-41,-45,-48,-91,-26,-39,-47,-56,-66,-68,-81,-92,-95,-92,-99,-100,-108,-67,-49,-109,-111,-167,-118,-143,-154,-739,-747,-1166,-1189,-29987,-264,-292,-274,-256,-225,-251,-37,-43,-8,-81,-28,-32,-33,-1654,-1644,-3532,0,0,0,-1516,0,0,222,-29983,-29984,-29984,-29985,-29987,-29988,-29987,-29988]} 1. d4 {[%emt 0:00:33]} Nf6 {[%emt 0:00:09]} 2. c4 {[%emt 0:00:07]} e6 {[%emt 0:00:08]} 3. g3 {[%emt 0:00:05]} Bb4+ {[%emt 0:00:45]} 4. Bd2 {[%emt 0:01:46]} Be7 {[%emt 0:00:33]} 5. Bg2 {[%emt 0:00:09]} d5 {[%emt 0:00:07]} 6. Nf3 {[%emt 0:00:05]} O-O {[%emt 0:00:12]} 7. O-O {[%emt 0:00:04]} Nbd7 {[%emt 0:00:28]} 8. Qc2 {[%emt 0:00:12]} c6 {[%emt 0:00:09]} 9. Rd1 {[%emt 0:00:06]} a5 {[%emt 0:00:33] E11: Bogo-Indian.} 10. Bf4 {[%emt 0:02:32]} a4 {[%emt 0:00:44]} 11. Nbd2 {[%emt 0:01:50] 11.a3 is setting a new trend.} Nh5 {[%emt 0:00:16] The position is equal.} 12. Be3 {[%emt 0:00:07]} Nhf6 {[%emt 0:01:57]} 13. Bf4 {[%emt 0:00:14]} Nh5 {[%emt 0:01:08]} 14. Be3 {[%emt 0:00:04]} Nhf6 {[%emt 0:00:57]} 15. Bg5 {[%emt 0:08:26] [#]} h6 $146 {[%emt 0:01:13]} ({Predecessor:} 15... a3 16. b3 h6 17. Bxf6 Nxf6 18. e4 b6 19. Rac1 Ba6 20. Ne5 Rc8 21. Qb1 Bb7 22. b4 Nd7 23. Nxd7 Qxd7 24. c5 bxc5 25. bxc5 Ba6 {½-½ (43) Stein,R (2344)-Bluebaum,M (2674) Magdeburg 2021}) 16. Bf4 {[%emt 0:01:43]} (16. Bxf6 $5 Bxf6 17. e4 $14) 16... Nh5 {[%emt 0:08:44]} 17. Be3 {[%emt 0:01:09]} Nhf6 {[%emt 0:02:11]} 18. Bf4 {[%emt 0:01:38]} Nh5 {[%emt 0:00:41]} 19. Be5 {[%emt 0:00:48]} (19. e3 $142) 19... f6 $11 {[%emt 0:00:26]} 20. Bf4 {[%emt 0:01:18]} g5 {[%emt 0:00:28]} 21. Be3 {[%emt 0:03:06]} Ng7 {[%emt 0:00:24]} (21... f5 $5 {[%cal Rf5f4]}) 22. Nf1 {[%emt 0:01:43]} Nb6 {[%emt 0:10:46]} 23. b3 {[%emt 0:01:10]} Bd7 {[%emt 0:00:09]} 24. c5 {[%emt 0:07:25]} Nc8 {[%emt 0:05:16]} 25. Bd2 {[%emt 0:00:11]} Be8 {[%emt 0:02:43]} 26. Ne3 {[%emt 0:01:11]} (26. bxa4 b6 $16) 26... Bh5 {[%emt 0:06:20]} (26... h5 $11 {deserves consideration.}) 27. bxa4 {[%emt 0:05:27]} (27. g4 $5 {[%cal Rg4h5]} Bf7 28. bxa4 $16) 27... Qe8 {[%emt 0:00:17]} 28. Qb3 {[%emt 0:07:12]} Ra7 $1 {[%emt 0:04:26]} 29. Bc3 {[%emt 0:00:05]} Bd8 {[%emt 0:01:19]} 30. Re1 {[%emt 0:02:09]} Rf7 {[%emt 0:00:36]} 31. Nf1 {[%emt 0:01:17]} b6 {[%emt 0:01:10]} 32. e4 {[%emt 0:02:34]} Rfb7 {[%emt 0:07:14]} 33. Qd1 {[%emt 0:10:33]} bxc5 {[%emt 0:12:37]} (33... Ne7 $142) 34. dxc5 {[%emt 0:00:37]} Qf8 {[%emt 0:00:17]} (34... dxe4 $1 $11 35. Rxe4 e5) 35. exd5 $16 {[%emt 0:10:19]} cxd5 {[%emt 0:01:51]} 36. Rc1 {[%emt 0:02:24]} Ne7 {[%emt 0:03:36]} 37. Ne3 {[%emt 0:00:40]} Nc6 {[%emt 0:03:31]} 38. Qd2 {[%emt 0:18:14] Inhibits d4.} (38. Nxd5 Rd7 $11) 38... Be8 {[%emt 0:07:43]} 39. Nd4 {[%emt 0:01:31]} Nxd4 {[%emt 0:01:03]} 40. Bxd4 {[%emt 0:00:31]} Bc6 $1 {[%emt 0:00:32]} (40... Ba5 $2 41. Bc3 Qxc5 42. Ng4 $18) 41. Rb1 {[%emt 1:01:34]} ({White should play} 41. Nc4 $14) 41... Ba5 $11 {[%emt 1:06:52]} 42. Bc3 {[%emt 0:00:09]} Rxb1 {[%emt 0:00:16]} 43. Rxb1 {[%emt 0:00:04]} Qxc5 {[%emt 0:00:13]} 44. Bxa5 {[%emt 0:00:00]} Qxa5 {[%emt 0:00:00]} 45. Qc2 {[%emt 0:00:00]} Be8 {[%emt 0:00:00]} 46. Ng4 {[%emt 0:00:00][%csl LRf6,LRh6]} f5 {[%emt 0:00:00]} 47. Nf6+ {[%emt 0:00:00]} Kf7 {[%emt 0:00:00]} 48. Nxe8 {[%emt 0:00:00]} Nxe8 {[%emt 0:00:00]} 49. Qb2 {[%emt 0:00:00]} Nf6 {[%emt 0:00:00]} (49... Qxa4 $17 50. Qh8 Qxa2 51. Qh7+ Ng7) 50. Qd4 {[%emt 0:00:00]} Rc7 {[%emt 0:00:00]} 51. Bf1 {[%emt 0:00:00]} Qa7 {[%emt 0:00:00] Inhibits Rb8.} 52. Rb6 {[%emt 0:01:20]} Nd7 {[%emt 0:00:00]} 53. a5 {[%emt 0:00:05]} Qxa5 {[%emt 0:00:00]} (53... Nxb6 $2 54. axb6 Qb7 55. bxc7 $18) 54. Ra6 {[%emt 0:00:19]} Qc5 {[%emt 0:00:00]} 55. Qh8 {[%emt 0:00:16] aiming for Qh7+.} Nf6 {[%emt 0:00:00] Inhibits Qh7+.} 56. Ra8 {[%emt 0:06:33][%cal Of1b5] Prevents Rc8.} Kg6 {[%emt 0:00:00]} 57. Rf8 {[%emt 0:01:59]} (57. Qb8 $1 $15) 57... Rg7 $17 {[%emt 0:00:00]} 58. Rc8 {[%emt 0:00:51]} (58. Rb8 $17 {was worth a try.}) 58... Qd4 {[%emt 0:00:00]} (58... Qa5 $19 59. Qd8 Qxd8 60. Rxd8 Ne4) 59. Bb5 {[%emt 0:00:59]} f4 {[%emt 0:00:00] White must now prevent ...Rh7.} 60. Be8+ $2 {[%emt 0:04:18]} (60. Bf1 $17) 60... Kf5 $1 $19 {[%emt 0:00:00]} ({Not} 60... Nxe8 61. Qxe8+ Kf5 62. g4+ Ke5 63. Rc1 $11) 61. Bb5 {[%emt 0:05:21]} Rb7 {[%emt 0:00:04]} (61... fxg3 62. hxg3 Rh7 63. Qf8 $17) 62. Be2 {[%emt 0:07:59] Against Qd1+} g4 $2 {[%emt 0:02:19]} (62... Rb1+ {mates} 63. Kg2 Rb2 64. g4+ Ke5 65. Rc4 dxc4 66. Qa8 c3 67. Qf3 c2 68. Qc6 Qe4+ 69. Bf3 Qxc6 70. Bxc6 c1=Q 71. Bf3 Qe3 72. Be2 Qxe2 73. h3 Qxf2+ 74. Kh1 Qh2#) 63. Rb8 {[%emt 0:02:19]} Rc7 {[%emt 0:06:47]} 64. Rc8 {[%emt 0:00:01]} Rh7 {[%emt 0:00:33]} 65. Qf8 {[%emt 0:00:45]} fxg3 $2 {[%emt 0:04:45] Dancing on a razor blade.} (65... Rb7 $19 {( -> ...Rb1+)} 66. Qa3 e5) 66. hxg3 $15 {[%emt 0:00:11]} Kg6 {[%emt 0:00:41] Strongly threatening ...Qd2.} (66... h5 $5 {[%cal Rd4e4]} 67. Qa3 Ne4 68. Rf8+ Kg6 $17) 67. Bb5 {[%emt 0:01:40]} (67. Rc6 $11 {keeps the balance.}) 67... Rf7 {[%emt 0:01:08]} ({Black should try} 67... Qd1+ $17 68. Kh2 Qd4) 68. Qh8 $1 $11 {[%emt 0:00:04]} Qd1+ {[%emt 0:03:21]} 69. Kh2 $2 {[%emt 0:00:28][%mdl 8192]} (69. Bf1 $15) 69... Qd2 $1 $19 {[%emt 0:01:14][%csl LRa2,LRf2]} 70. Kg2 {[%emt 0:00:41]} Rh7 $2 {[%emt 0:04:24]} (70... Ne4 $1 $19 71. Rg8+ Kf5) 71. Qf8 $11 {[%emt 0:00:17]} Rf7 $2 $40 {[%emt 0:02:12][%mdl 8320] Black attacks.} (71... Ra7 $11 72. Qc5 Rf7) 72. Qh8 $1 $19 {[%emt 0:00:01] [#]} Qxa2 $2 {[%emt 0:01:10]} (72... Ne4 $1 $19 73. Rg8+ Kf5) 73. Bd3+ $11 {[%emt 0:00:19]} Kh5 $2 {[%emt 0:04:03] [#]} (73... Kg5 $11 {and Black is okay.}) 74. Rg8 $4 {[%emt 0:00:21][%mdl 8192]} Ne4 {[%emt 0:00:41] Black mates.} 75. Qe5+ {[%emt 0:01:20]} Rf5 {[%emt 0:00:02]} 76. Bxe4 {[%emt 0:00:16]} Qxf2+ {[%emt 0:00:07]} (76... Rxe5 $2 77. Bg6+ Kg5 78. Bb1+ Kf6 79. Bxa2 $18) 77. Kh1 {[%emt 0:00:02]} Qe1+ {[%emt 0:00:31][%mdl 64] Pin.  Weighted Error Value: White=0.24 (precise) /Black=0.09 (flawless)} ({Worse is} 77... Rxe5 78. Bg6+ Kg5 79. Bc2+ Kh5 80. Bg6+ Kg5 81. Bc2+ Kh5 82. Bg6+ $11) 0-1